bitfinex/quotes_ETHUSD_20250112
["timestamp","ask_amount","ask_price","bid_price","bid_amount"]
[1736690712171,0.09587435,3271.9,3271.5,5.40056387]
[1736690712493,2.13931,3272.1,3271.5,6.01960026]
[1736690712703,2.13931,3272.1,3271.5,5.98903639]
[1736690712874,0.09587435,3272.0,3271.5,5.98903639]
[1736690714217,2.17273753,3271.9,3271.5,5.37]
[1736690714379,2.97863753,3271.9,3271.5,5.37]
[1736690714580,0.09587435,3271.8,3271.5,5.37]
[1736690717694,2.23537435,3271.8,3271.5,5.37]
[1736690717896,2.1395,3271.8,3271.5,5.37]
[1736690718099,0.09582355,3271.7,3271.5,5.37]
[1736690718399,2.1395,3271.8,3271.5,5.37]
[1736690718708,0.09582355,3271.7,3271.5,5.37]
[1736690719019,2.1395,3271.8,3271.5,5.37]
[1736690719238,0.09582355,3271.7,3271.5,5.37]
[1736690719540,2.1395,3271.8,3271.5,5.37]
[1736690719715,0.09582355,3271.6,3271.5,5.37]
[1736690720048,2.1395,3271.8,3271.3,6.1523]
[1736690720179,0.09561308,3271.7,3271.3,6.1523]
[1736690720385,0.8059,3271.9,3271.3,7.06753]
[1736690720586,2.97868753,3271.9,3271.3,7.06753]
[1736690721241,0.09561308,3271.8,3271.3,7.06753]
[1736690728238,0.09561308,3271.8,3271.3,6.1523]
[1736690728392,2.13963,3271.6,3271.3,5.37]
[1736690728598,0.78530753,3271.5,3271.3,5.37]
[1736690728805,0.09547518,3271.4,3271.3,5.37]
[1736690729643,0.752,3271.5,3271.3,5.37]
[1736690729930,0.09546066,3271.4,3271.3,5.37]
[1736690732132,0.09546066,3271.4,3271.0,5.37]
[1736690732331,0.15289564,3271.4,3271.1,0.61598]
[1736690732541,0.752,3271.5,3271.1,0.61598]
[1736690732943,0.15248187,3271.4,3271.1,0.61598]
[1736690733347,0.752,3271.5,3271.1,0.61598]
[1736690733660,0.15248187,3271.4,3271.1,0.61598]
[1736690734027,0.752,3271.5,3271.1,0.61598]
[1736690734229,0.15248187,3271.4,3271.1,0.61598]
[1736690734433,0.752,3271.5,3271.1,0.61598]
[1736690734655,0.15248187,3271.4,3271.1,0.61598]
[1736690734955,0.752,3271.5,3271.1,0.61598]
[1736690735247,0.15248187,3271.4,3271.1,0.61598]
[1736690735452,0.752,3271.5,3271.1,0.61598]
[1736690735654,0.15248187,3271.4,3271.1,0.61598]
[1736690735859,0.752,3271.5,3271.1,0.61598]
[1736690736154,0.15248187,3271.4,3271.1,0.61598]
[1736690736664,0.752,3271.5,3271.1,0.61598]
[1736690737352,0.752,3271.5,3271.0,5.37]
[1736690741785,0.752,3271.5,3271.0,5.40056834]
[1736690741992,0.752,3271.8,3271.1,1.362]
[1736690742203,2.13938,3272.0,3271.2,0.03056541]
[1736690743602,2.13911,3272.4,3271.6,0.7895]
[1736690743755,2.13897,3272.6,3271.8,0.7895]
[1736690744096,2.13897,3272.6,3271.9,0.58056002]
[1736690744301,0.15242379,3272.5,3271.9,0.58056002]
[1736690744590,0.15242379,3272.5,3272.1,0.55]
[1736690744794,2.13887,3272.8,3272.1,0.58055806]
[1736690745001,0.752,3272.9,3272.2,0.0075]
[1736690745202,0.752,3272.9,3272.3,0.0305562]
[1736690745413,0.15242379,3272.8,3272.3,0.0305562]
[1736690745964,0.15242379,3272.8,3272.1,0.55]
[1736690746272,2.17225753,3272.7,3272.1,0.55]
[1736690746491,0.23246813,3272.6,3272.1,0.55]
[1736690746660,2.13898,3272.6,3272.1,0.55]
[1736690746865,0.15242379,3272.5,3272.1,0.55]
[1736690749807,0.15242379,3272.5,3272.1,0.58055813]
[1736690750010,2.13886,3272.8,3272.1,0.58055813]
[1736690750011,2.13886,3272.8,3272.1,5.95055813]
[1736690750179,0.15365766,3272.7,3272.1,5.92]
[1736690750502,0.15365766,3272.7,3272.1,6.59095]
[1736690754476,0.15365766,3272.7,3272.2,0.0075]
[1736690754675,0.15365766,3272.7,3272.3,0.757]
[1736690754914,2.13874,3273.0,3272.3,0.78755575]
[1736690755117,0.15365766,3272.6,3272.3,0.78755575]
[1736690755294,2.13874,3273.0,3272.3,0.78755575]
[1736690755483,0.15365766,3272.5,3272.3,1.52540633]
[1736690755683,2.13874,3273.0,3272.3,1.52540633]
[1736690755897,0.15365766,3272.4,3272.3,2.07540633]
[1736690756098,2.13877,3272.9,3272.3,2.07540633]
[1736690756415,0.15365766,3272.8,3272.3,2.07540633]
[1736690756593,0.15365766,3272.8,3272.4,0.20754063]
[1736690756798,2.29250766,3272.8,3272.4,0.20754063]
[1736690757120,2.29250766,3272.8,3272.3,2.04485058]
[1736690757919,2.29250766,3272.8,3272.3,2.07540634]
[1736690761097,0.15365766,3272.8,3272.4,0.5575]
[1736690761324,0.15365766,3272.8,3272.7,0.757]
[1736690761621,0.15383909,3272.8,3272.7,0.757]
[1736690761781,2.1386,3273.2,3272.7,0.757]
[1736690761985,0.15383909,3273.1,3272.8,5.9425]
[1736690762315,0.0273508,3273.5,3273.0,0.757]
[1736690762490,0.0273508,3273.5,3273.0,0.78754899]
[1736690762690,0.15383909,3273.4,3273.0,0.78754899]
[1736690763091,0.15383909,3273.4,3273.2,0.015]
[1736690763303,0.15383909,3273.4,3273.3,0.5575]
[1736690763500,0.15383909,3273.4,3273.3,0.0075]
[1736690763700,0.15383909,3273.4,3273.3,1.3295]
[1736690763912,0.15383909,3273.4,3273.3,1.54874616]
[1736690764205,0.0273508,3273.5,3273.4,5.9425]
[1736690764416,0.0273508,3273.5,3273.4,9.6995]
[1736690764733,0.0273508,3273.5,3273.4,11.83794]
[1736690765919,0.0273508,3273.5,3273.4,25.64544]
[1736690766235,0.0273508,3273.5,3273.4,28.228854]
[1736690768432,2.13721,3275.3,3274.7,0.015]
[1736690768594,2.13721,3275.3,3274.8,0.55]
[1736690768799,2.13721,3275.3,3274.9,0.0305317]
[1736690769393,2.89354,3275.6,3275.0,0.5725]
[1736690769598,0.15185719,3275.5,3275.2,0.55]
[1736690769913,0.15185719,3275.5,3275.2,1.31299907]
[1736690770116,0.15185719,3275.5,3275.3,0.03052909]
[1736690770310,2.137,3275.7,3275.3,0.03052909]
[1736690770639,0.7715,3276.2,3275.3,0.03052909]
[1736690770814,0.7715,3276.2,3275.3,0.727049]
[1736690771133,0.7715,3276.2,3275.4,0.5725]
[1736690771343,2.13668,3276.1,3275.6,0.0225]
[1736690771549,2.28896554,3276.1,3275.6,0.0225]
[1736690771704,0.15228554,3276.1,3275.4,0.55]
[1736690771909,2.13677,3276.0,3275.4,0.55]
[1736690772110,2.13682,3275.9,3275.5,0.015]
[1736690772343,2.28922894,3275.9,3275.5,0.015]
[1736690773850,2.137,3275.7,3275.2,3.0]
[1736690774144,2.13703,3275.6,3275.2,0.0225]
[1736690774352,2.28943894,3275.6,3275.2,0.5725]
[1736690775120,2.1371,3275.5,3275.2,0.5725]
[1736690775267,2.1371,3275.5,3275.2,0.5575]
[1736690775469,2.13714,3275.4,3275.1,6.2022]
[1736690775627,0.15240894,3275.3,3275.1,5.37]
[1736690776261,2.28967894,3275.3,3275.1,5.37]
[1736690776526,2.13727,3275.2,3275.1,5.37]
[1736690776928,2.29029604,3275.2,3275.1,5.37]
[1736690778533,2.51932564,3275.2,3274.5,0.8322]
[1736690778735,2.51932564,3275.2,3274.3,5.37]
[1736690778736,2.13753,3274.8,3274.3,5.37]
[1736690779035,0.15236599,3274.7,3274.4,0.5575]
[1736690780878,2.28997599,3274.7,3274.4,0.5575]
[1736690781035,0.15236599,3274.7,3274.4,0.58803627]
[1736690781381,2.13748,3274.9,3274.4,0.58803627]
[1736690781587,2.13748,3274.9,3274.0,0.0075]
[1736690781588,0.15236599,3274.6,3274.0,5.37]
[1736690781788,2.13762,3274.7,3274.1,3.5575]
[1736690781972,2.13762,3274.7,3274.1,3.58803797]
[1736690782129,2.13765,3274.7,3274.1,3.5575]
[1736690782332,2.13765,3274.7,3274.1,3.58803797]
[1736690782589,2.13765,3274.7,3274.1,4.56160177]
[1736690783385,0.8273,3275.6,3274.8,0.0075]
[1736690783586,2.13729,3275.2,3274.8,0.0075]
[1736690783992,0.15236599,3275.1,3274.8,0.0075]
[1736690784590,0.15236599,3275.1,3274.6,5.37]
[1736690784591,0.18567352,3275.1,3274.6,5.37]
[1736690784791,0.8273,3275.0,3274.6,5.37]
[1736690784967,0.03330753,3274.9,3274.6,5.37]
[1736690785177,0.18540489,3274.9,3274.6,5.37]
[1736690785387,2.1376,3274.7,3274.6,5.37]
[1736690785692,2.28980627,3274.7,3274.6,5.37]
[1736690786201,2.13769,3274.6,3273.9,5.37]
[1736690786511,0.97936106,3274.5,3273.9,5.37]
[1736690787799,2.13794,3274.2,3273.9,5.37]
[1736690788116,0.15185046,3274.1,3273.9,5.37]
[1736690788620,0.15185046,3274.1,3273.4,5.37]
[1736690788923,2.13801,3274.1,3273.5,1.36021366]
[1736690789081,0.15114609,3274.0,3273.6,0.5725]
[1736690789481,0.15114609,3274.0,3273.8,0.0075]
[1736690790013,0.15114609,3274.0,3273.7,0.0075]
[1736690791070,0.15114609,3274.0,3273.7,0.03804267]
[1736690791282,0.15114609,3274.0,3273.7,0.03804268]
[1736690791482,0.15114609,3274.0,3273.7,0.23131395]
[1736690791691,2.13793,3274.2,3273.7,0.23131395]
[1736690792027,0.1511243,3274.1,3273.7,0.23131395]
[1736690794669,0.1511243,3274.1,3274.0,0.0075]
[1736690794929,2.13779,3274.4,3274.0,0.0075]
[1736690795069,0.15108072,3274.1,3274.0,0.0075]
[1736690795267,2.13779,3274.4,3274.0,0.0075]
[1736690795579,0.15108072,3274.3,3274.0,0.0075]
[1736690795783,0.15108072,3274.3,3274.1,0.7738]
[1736690798650,0.15108072,3274.3,3274.2,0.0075]
[1736690799453,0.15108072,3274.3,3274.2,0.565]
[1736690799653,2.13769,3274.6,3274.2,0.565]
[1736690799958,0.7677,3274.8,3274.4,0.0075]
[1736690799959,0.15110249,3274.5,3274.4,0.0075]
[1736690800300,2.13755,3274.8,3274.4,0.0075]
[1736690800613,0.15110249,3274.7,3274.5,0.0075]
[1736690800814,2.13742,3275.0,3274.6,0.565]
[1736690801021,0.7558,3275.3,3274.8,0.5575]
[1736690801260,2.13727,3275.2,3274.8,0.565]
[1736690801436,2.13734,3275.1,3274.8,0.565]
[1736690801594,2.28874026,3275.1,3274.8,0.565]
[1736690802454,0.15140026,3275.1,3274.8,0.565]
[1736690802656,0.15140026,3275.1,3274.9,0.0075]
[1736690802817,2.89294,3275.5,3274.9,0.0075]
[1736690803020,0.15140026,3275.4,3275.0,0.0075]
[1736690803256,0.15140026,3275.4,3275.1,0.015]
[1736690803554,0.15140026,3275.4,3275.3,0.0075]
[1736690804055,0.15177063,3275.4,3275.3,0.0075]
[1736690804261,2.13671,3276.1,3275.3,0.565]
[1736690804397,2.17005753,3276.0,3275.3,0.565]
[1736690804602,2.13699,3275.7,3275.3,0.565]
[1736690805220,0.15228235,3275.6,3275.3,0.565]
[1736690805414,2.28930235,3275.6,3275.3,0.565]
[1736690806559,0.15228235,3275.6,3275.3,0.565]
[1736690806707,2.13707,3275.5,3275.3,0.565]
[1736690807065,0.1523622,3275.4,3275.3,0.565]
[1736690807563,2.2895022,3275.4,3275.3,0.0075]
[1736690809195,0.1523622,3275.4,3275.3,0.0075]
[1736690809501,2.13681,3275.9,3275.4,0.0075]
[1736690809788,0.15231139,3275.8,3275.4,0.0075]
[1736690810987,0.15231139,3275.8,3275.3,1.3598]
[1736690810988,0.85380753,3276.1,3275.3,0.0075]
[1736690811193,2.13706,3275.6,3275.3,0.0075]
[1736690811372,2.1372,3275.3,3274.9,0.8023]
[1736690811573,2.1372,3275.3,3275.0,0.0075]
[1736690812135,0.15245656,3275.2,3275.0,0.0075]
[1736690812453,2.1372,3275.3,3275.0,0.0075]
[1736690812664,0.15245656,3275.2,3275.0,0.0075]
[1736690813015,2.13725,3275.3,3275.0,0.0075]
[1736690813314,2.13733,3275.2,3274.9,0.015]
[1736690813453,0.15237672,3275.1,3274.9,0.015]
[1736690813661,2.13717,3275.4,3274.9,0.015]
[1736690813994,2.28947783,3275.3,3274.9,0.015]
[1736690816726,2.28947783,3275.3,3274.9,0.93298]
[1736690816930,0.15226783,3275.3,3274.9,0.93298]
[1736690817138,0.15226783,3275.3,3274.9,0.96351181]
[1736690817423,2.13709,3275.5,3274.9,0.96351181]
[1736690817630,0.15250739,3275.2,3274.9,0.96351181]
[1736690817832,2.13709,3275.5,3274.9,0.96351181]
[1736690818012,0.15250739,3275.1,3275.0,1.19835118]
[1736690818214,2.13697,3275.7,3275.2,0.015]
[1736690818419,2.13697,3275.7,3275.2,0.0075]
[1736690818598,0.15250739,3275.6,3275.2,0.0075]
[1736690819477,2.95732,3275.9,3275.3,0.5575]
[1736690819731,0.15250739,3275.8,3275.5,6.7373]
[1736690819935,0.15250739,3275.8,3275.7,0.0075]
[1736690820253,2.95715,3276.2,3275.7,0.0075]
[1736690820514,0.15250739,3276.1,3275.7,0.0075]
[1736690820686,0.15250739,3276.1,3275.7,0.565]
[1736690820892,0.15250739,3276.1,3275.8,0.0075]
[1736690821282,0.15250739,3276.1,3275.8,0.05302298]
[1736690821646,2.1365,3276.4,3275.8,0.0225]
[1736690821935,0.15282673,3276.3,3275.8,0.0225]
[1736690822232,0.15282673,3276.3,3275.8,0.44742827]
[1736690822598,0.15282673,3276.3,3275.8,0.98242827]
[1736690822945,0.15282673,3276.3,3275.9,0.565]
[1736690823135,0.15282673,3276.3,3275.9,0.015]
[1736690823340,0.15282673,3276.3,3276.1,0.015]
[1736690823541,0.15282673,3276.3,3276.1,0.04552076]
[1736690823736,2.13637,3276.6,3276.1,0.04552076]
[1736690823901,0.15293559,3276.2,3276.1,0.59552076]
[1736690824080,2.13637,3276.6,3276.1,0.59552076]
[1736690824444,2.28937559,3276.5,3276.1,0.565]
[1736690828417,2.28937559,3276.5,3276.1,0.59552036]
[1736690828575,0.15293559,3276.5,3276.1,0.59552036]
[1736690828980,2.13636,3276.6,3276.1,0.59552036]
[1736690829282,0.1658925,3276.8,3276.1,0.59552036]
[1736690829505,2.13637,3276.6,3276.1,0.565]
[1736690829707,2.13642,3276.5,3276.1,0.565]
[1736690829910,2.13668,3276.1,3275.8,0.0075]
[1736690830285,0.15293559,3276.0,3275.8,0.0075]
[1736690830482,2.13657,3276.3,3275.9,0.015]
[1736690830700,2.28958559,3276.2,3275.9,0.015]
[1736690830901,2.13669,3276.1,3275.9,0.015]
[1736690831304,0.15293559,3276.0,3275.9,0.015]
[1736690831887,2.13656,3276.3,3275.9,0.015]
[1736690832130,0.15300813,3276.2,3275.9,0.015]
[1736690832311,0.03330753,3276.2,3275.7,0.7919]
[1736690832520,2.13669,3276.1,3275.8,0.03052342]
[1736690832702,0.15300813,3276.0,3275.9,0.0075]
[1736690833529,0.15300813,3276.0,3275.8,0.015]
[1736690833719,0.15300813,3276.0,3275.8,0.04552382]
[1736690833920,0.8063,3276.4,3275.8,0.04552382]
[1736690834102,2.13663,3276.2,3275.8,0.015]
[1736690834302,0.15299363,3276.1,3275.8,0.015]
[1736690835037,0.15299363,3276.1,3276.0,1.3569]
[1736690835244,0.15299363,3276.1,3276.0,9.77241874]
[1736690835398,0.1658925,3276.8,3276.3,0.5725]
[1736690835793,0.1658925,3276.8,3276.3,0.5522]
[1736690835992,0.15305166,3276.7,3276.4,0.58051553]
[1736690836230,0.15305166,3276.7,3276.3,0.55]
[1736690836544,0.15305166,3276.6,3276.3,0.55]
[1736690836896,0.1658925,3276.8,3276.3,0.55]
[1736690836897,0.1658925,3276.8,3276.6,0.7919]
[1736690837125,0.03665969,3276.8,3276.7,20.57297398]
[1736690837436,0.005,3278.4,3277.2,6.48536]
[1736690837597,0.005,3278.4,3277.3,8.8]
[1736690837936,0.005,3278.4,3278.0,0.7919]
[1736690838094,0.005,3278.4,3278.1,2.73837698]
[1736690838095,0.14850934,3278.3,3278.1,2.73837698]
[1736690838298,0.005,3278.4,3278.1,0.5725]
[1736690838492,0.005,3278.4,3278.2,0.03049573]
[1736690839101,0.005,3278.4,3278.2,0.0225]
[1736690839719,0.005,3278.4,3278.2,0.05299682]
[1736690839917,0.005,3278.4,3278.3,0.5725]
[1736690840121,0.15493037,3278.4,3278.3,0.5725]
[1736690840749,0.15493037,3278.4,3278.3,0.0225]
[1736690841053,0.15493037,3278.4,3278.3,0.32683289]
[1736690841253,0.005,3278.4,3278.3,0.32683289]
[1736690841656,0.005,3278.4,3278.3,0.2963367]
[1736690841953,0.005,3278.4,3278.3,0.0225]
[1736690842612,0.14984958,3278.4,3278.3,0.0225]
[1736690843365,0.005,3278.4,3278.3,0.0225]
[1736690843927,0.005,3278.4,3278.3,0.0529987]
[1736690844360,0.005,3278.4,3278.3,0.0225]
[1736690846558,0.005,3278.4,3278.1,14.17]
[1736690846759,2.13525,3278.3,3278.1,14.17]
[1736690846973,0.005,3278.4,3278.2,0.55]
[1736690848448,2.1402,3278.4,3278.2,0.55]
[1736690848851,2.1402,3278.4,3277.8,0.0075]
[1736690849045,2.13525,3278.3,3277.8,0.0075]
[1736690849651,2.13534,3278.2,3277.7,3.565]
[1736690850661,2.13534,3278.2,3277.8,0.0075]
[1736690850882,2.13534,3278.2,3277.7,0.565]
[1736690851051,2.13525,3278.3,3277.7,0.565]
[1736690851247,2.13535,3278.2,3277.7,0.565]
[1736690852173,2.13535,3278.2,3277.8,0.55]
[1736690852401,0.8245,3278.3,3277.9,0.0075]
[1736690852555,0.005,3278.4,3277.9,0.015]
[1736690852873,0.005,3278.4,3278.1,0.015]
[1736690853378,0.005,3278.4,3278.2,0.5575]
[1736690853957,0.005,3278.4,3278.2,0.0075]
[1736690855173,0.14498001,3278.3,3278.2,0.8153]
[1736690855482,0.14498001,3278.3,3278.2,1.3803]
[1736690856588,0.005,3278.4,3278.3,0.55]
[1736690856756,0.005,3278.4,3278.2,0.0225]
[1736690857891,0.8245,3278.3,3277.7,8.8]
[1736690858179,0.03330753,3278.2,3277.2,0.8078]
[1736690858341,0.8245,3277.7,3276.8,0.8078]
[1736690858543,2.13585,3277.4,3276.9,3.0075]
[1736690858824,2.13585,3277.4,3277.0,0.0075]
[1736690859009,0.8245,3277.7,3277.0,0.68996678]
[1736690859209,2.13573,3277.6,3277.2,0.0075]
[1736690859395,0.8245,3277.7,3277.2,0.0075]
[1736690859597,0.8048,3278.0,3277.2,0.0075]
[1736690859931,2.1357,3277.7,3277.2,0.0075]
[1736690860428,2.13553,3277.9,3277.5,0.0075]
[1736690860626,2.13553,3277.9,3277.6,0.015]
[1736690860925,2.1354,3278.1,3277.7,0.55]
[1736690861103,2.1354,3278.1,3277.7,0.58050541]
[1736690861689,2.94007,3278.3,3277.8,0.0075]
[1736690861934,2.94007,3278.3,3277.6,0.015]
[1736690861935,2.94007,3278.3,3277.9,0.0305041]
[1736690862141,2.94007,3278.3,3277.6,0.0075]
[1736690862142,2.13531,3278.2,3277.8,0.0305041]
[1736690862701,0.005,3278.4,3277.8,0.0305041]
[1736690862702,2.1402,3278.4,3277.9,0.0225]
[1736690863047,0.005,3278.4,3278.1,0.5725]
[1736690863247,0.005,3278.4,3278.2,0.0305004]
[1736690863613,0.005,3278.4,3278.1,0.5725]
[1736690864138,0.14724981,3278.3,3278.1,0.5725]
[1736690864713,2.13531,3278.2,3277.7,3.765]
[1736690864918,0.14724981,3278.3,3277.8,1.2565]
[1736690865130,2.13531,3278.2,3277.9,0.5725]
[1736690865446,0.005,3278.4,3277.9,0.5725]
[1736690865447,1.98737981,3278.5,3277.9,0.0225]
[1736690865606,0.03330753,3278.8,3277.9,0.0225]
[1736690865607,0.14234149,3278.1,3277.9,0.0225]
[1736690865809,2.13533,3278.2,3277.9,0.0225]
[1736690866023,2.13533,3278.2,3277.6,8.8]
[1736690866024,0.14234149,3278.0,3277.6,8.8]
[1736690866310,2.13531,3278.2,3277.6,9.17155435]
[1736690866512,2.13546,3278.0,3277.7,0.5725]
[1736690866720,0.8048,3278.3,3277.7,0.0225]
[1736690866913,0.14234149,3278.2,3277.7,0.0225]
[1736690867143,0.8048,3278.3,3277.7,0.0225]
[1736690867446,2.13552,3277.9,3277.7,0.0225]
[1736690867608,2.13552,3277.9,3277.5,0.55]
[1736690867810,2.13552,3277.9,3277.5,2.0985]
[1736690868011,0.14234149,3277.8,3277.6,0.0225]
[1736690868807,2.13552,3277.9,3277.6,0.0225]
[1736690869009,0.14213862,3277.7,3277.6,0.0225]
[1736690869209,2.13552,3277.9,3277.6,0.0225]
[1736690869406,0.14213862,3277.7,3277.6,0.0225]
[1736690869635,2.13552,3277.9,3277.6,0.0225]
[1736690869956,0.14213862,3277.7,3277.6,0.0225]
[1736690870526,0.14213862,3277.7,3277.5,0.55]
[1736690870729,2.13559,3277.8,3277.4,8.8]
[1736690871134,2.27781862,3277.7,3277.5,0.55]
[1736690871738,2.1357,3277.6,3277.2,0.5725]
[1736690871920,0.8151,3277.7,3277.2,0.565]
[1736690872122,2.13583,3277.5,3277.0,0.68246678]
[1736690872410,0.14198645,3277.4,3277.0,0.5725]
[1736690873020,2.27782645,3277.4,3277.0,0.5725]
[1736690873220,0.14198645,3277.4,3277.2,0.565]
[1736690873610,2.13578,3277.5,3277.2,0.565]
[1736690873838,0.14198645,3277.3,3277.1,0.015]
[1736690874048,2.13578,3277.5,3277.1,0.015]
[1736690874253,0.14198645,3277.2,3277.1,0.0225]
[1736690874424,2.13578,3277.5,3277.1,0.0225]
[1736690874821,0.14198645,3277.4,3277.1,0.0225]
[1736690876960,0.8151,3277.7,3277.1,0.0225]
[1736690877166,2.13572,3277.6,3277.1,0.0225]
[1736690877367,2.13577,3277.5,3277.1,0.0225]
[1736690877725,0.14175454,3277.4,3277.1,0.0225]
[1736690878462,2.95077,3277.7,3277.1,0.0225]
[1736690878642,0.14137047,3277.3,3277.1,0.0225]
[1736690879154,0.8151,3277.7,3277.1,0.0225]
[1736690879329,2.13577,3277.5,3277.1,0.0225]
[1736690879524,0.14137047,3277.4,3277.1,0.0225]
[1736690883673,2.13584,3277.4,3277.1,0.0225]
[1736690883983,0.14129073,3277.3,3277.1,0.0225]
[1736690884157,0.14129073,3277.3,3276.6,0.31880658]
[1736690884356,0.7928,3277.2,3276.6,0.31880658]
[1736690884686,2.13623,3276.8,3276.4,6.1781]
[1736690884889,2.13623,3276.8,3276.5,0.015]
[1736690885072,0.14129073,3276.7,3276.5,0.015]
[1736690885233,0.14129073,3276.7,3276.5,0.565]
[1736690885437,2.13623,3276.8,3276.5,0.015]
[1736690885638,0.14129073,3276.6,3276.5,0.0225]
[1736690886194,2.13642,3276.5,3276.4,5.37]
[1736690886791,2.27771073,3276.5,3276.4,5.37]
[1736690886938,2.27771073,3276.5,3276.4,5.92]
[1736690887337,2.56330212,3276.5,3276.4,5.92]
[1736690887772,2.56330212,3276.5,3276.4,0.55]
[1736690887974,0.42688212,3276.5,3275.9,0.015]
[1736690888385,2.13672,3276.1,3275.9,0.015]
[1736690888702,0.14076873,3276.0,3275.9,0.015]
[1736690889698,0.14076873,3276.0,3275.8,0.55]
[1736690890358,0.14076873,3276.0,3275.8,1.22281]
[1736690893052,2.27752873,3276.0,3275.8,1.22281]
[1736690893345,2.27752873,3276.0,3275.8,0.55]
[1736690893813,2.27752873,3276.0,3275.6,0.55]
[1736690895146,2.13689,3275.8,3275.4,1.09052025]
[1736690895800,0.14076873,3275.7,3275.4,1.09052025]
[1736690896129,2.13689,3275.8,3275.5,0.55]
[1736690896331,2.89953,3276.1,3275.6,0.015]
[1736690896507,2.89953,3276.1,3275.6,0.04552724]
[1736690897563,0.7628,3276.1,3275.6,0.04552724]
[1736690897726,2.13675,3276.0,3275.6,0.015]
[1736690898286,2.13684,3275.9,3275.5,0.55]
[1736690898469,2.13686,3275.9,3275.5,0.55]
[1736690899588,2.13684,3275.9,3275.5,0.55]
[1736690900163,2.89953,3276.1,3275.5,0.55]
[1736690900676,0.13892665,3276.0,3275.5,0.55]
[1736690901375,2.27569665,3276.0,3275.5,0.55]
[1736690903568,2.27569665,3276.0,3275.8,0.55]
[1736690903569,0.13892665,3276.0,3275.8,0.55]
[1736690903769,0.13892665,3276.0,3275.8,0.58052379]
[1736690903914,2.94451,3276.4,3275.8,0.58052379]
[1736690904115,0.13896293,3275.9,3275.8,0.59552379]
[1736690904346,2.94451,3276.4,3275.8,0.59552379]
[1736690904548,0.13896293,3275.9,3275.8,0.59552379]
[1736690904750,2.13664,3276.2,3275.8,0.015]
[1736690904965,0.13896293,3275.9,3275.8,0.015]
[1736690905275,0.13901372,3275.9,3275.7,0.015]
[1736690905452,2.13671,3276.1,3275.7,0.015]
[1736690905772,0.13901372,3275.8,3275.7,0.015]
[1736690906236,2.13671,3276.1,3275.7,0.015]
[1736690906420,0.13901372,3276.0,3275.7,0.015]
[1736690907374,0.13901372,3276.0,3275.9,0.55]
[1736690908157,2.13671,3276.1,3275.9,0.55]
[1736690908674,2.94457,3276.3,3275.9,0.55]
[1736690908853,2.13657,3276.3,3275.9,0.55]
[1736690909061,0.13438107,3276.2,3275.9,0.55]
[1736690909575,2.13657,3276.3,3275.9,0.55]
[1736690910022,0.13438834,3276.2,3275.9,0.55]
[1736690910219,2.13657,3276.3,3275.9,0.55]
[1736690910458,0.13438834,3276.2,3275.9,0.55]
[1736690910816,2.13657,3276.3,3275.9,0.55]
[1736690911025,0.13438834,3276.2,3275.9,0.55]
[1736690911229,2.13657,3276.3,3275.9,0.55]
[1736690911467,0.13438834,3276.2,3275.9,0.55]
[1736690911862,0.7863,3276.7,3275.9,0.55]
[1736690912062,0.13438834,3276.1,3275.9,0.55]
[1736690912261,2.13662,3276.2,3275.9,0.55]
[1736690912465,0.13449737,3276.0,3275.9,0.55]
[1736690912668,2.13662,3276.2,3275.9,0.55]
[1736690912890,0.13196765,3276.0,3275.9,0.55]
[1736690913101,2.13662,3276.2,3275.9,0.55]
[1736690913397,0.13196765,3276.0,3275.9,0.55]
[1736690913590,2.13662,3276.2,3275.9,0.55]
[1736690913737,0.13192404,3276.0,3275.9,0.55]
[1736690914144,2.13662,3276.2,3275.9,0.55]
[1736690914563,0.13192404,3276.1,3275.9,0.55]
[1736690916701,0.13192404,3276.1,3276.0,1.38162311]
[1736690916843,0.13192404,3276.1,3276.0,1.57478542]
[1736690917044,2.13632,3276.7,3276.1,0.55]
[1736690917278,0.13189496,3276.6,3276.2,0.03051998]
[1736690917677,0.13189496,3276.6,3276.3,0.5725]
[1736690918004,2.13617,3276.9,3276.5,0.5725]
[1736690919154,0.7863,3277.0,3276.5,0.5725]
[1736690919308,0.7863,3277.0,3276.6,0.58051633]
[1736690919486,0.13225109,3276.9,3276.6,0.58051633]
[1736690919691,0.13225109,3276.9,3276.6,0.03051633]
[1736690920092,0.7711,3277.2,3276.7,0.0225]
[1736690920305,2.13536,3278.2,3276.7,0.5725]
[1736690920306,0.13267992,3276.8,3276.7,0.5725]
[1736690920495,2.90693,3277.5,3276.7,1.41161295]
[1736690920989,0.13274532,3277.4,3276.7,1.41161295]
[1736690921459,2.13567,3277.7,3276.9,0.5575]
[1736690921588,2.13549,3278.0,3277.3,0.0075]
[1736690921791,0.13295605,3277.9,3277.5,0.0075]
[1736690922027,2.13549,3278.0,3277.5,0.0380066]
[1736690922365,0.13315221,3277.9,3277.6,1.3661]
[1736690922708,2.13549,3278.0,3277.6,1.3661]
[1736690923176,0.13315221,3277.9,3277.6,1.3661]
[1736690923666,2.13549,3278.0,3277.6,1.3661]
[1736690924008,0.13315221,3277.9,3277.6,1.3661]
[1736690924664,0.13315221,3277.9,3277.8,0.5725]
[1736690924819,0.13315221,3277.9,3277.8,0.76866066]
[1736690925010,0.7711,3278.7,3278.0,0.0075]
[1736690925346,0.7711,3278.7,3278.1,0.565]
[1736690925669,0.7711,3278.7,3278.2,0.03050139]
[1736690926075,2.26824221,3278.6,3278.2,0.03050139]
[1736690926367,2.26824221,3278.6,3278.3,0.55]
[1736690927373,0.13315221,3278.6,3278.4,0.015]
[1736690927665,2.13498,3278.8,3278.5,0.55]
[1736690928006,2.90592,3279.0,3278.5,0.55]